fUST/lending_fUST_20240921
["ID","MTS","AMOUNT","RATE_DAILY","PERIOD"]
[338656058,1726852246426,-703.89,0.00015841,2]
[338656059,1726852246435,-1250.75,0.00015841,2]
[338656060,1726852246445,-500.0,0.00015841,2]
[338656061,1726852246455,-605.75,0.00015841,2]
[338656062,1726852246464,-500.0,0.00015841,2]
[338656063,1726852246473,-500.0,0.00015841,2]
[338656064,1726852246483,-500.0,0.00015841,2]
[338656065,1726852246492,-500.0,0.00015841,2]
[338656066,1726852246502,-500.0,0.00015841,2]
[338656067,1726852246511,-500.0,0.00015841,2]
[338656068,1726852246521,-672.79,0.00015841,2]
[338656069,1726852246531,-573.78,0.00015841,2]
[338656070,1726852246540,-500.0,0.00015841,2]
[338656071,1726852246550,-500.0,0.00015841,2]
[338656072,1726852246559,-500.0,0.00015841,2]
[338656073,1726852246569,-500.0,0.00015841,2]
[338656074,1726852246579,-175.25647326,0.00015841,2]
[338656075,1726852246588,-500.0,0.00015841,2]
[338656076,1726852246599,-500.0,0.00015841,2]
[338656077,1726852246610,-500.0,0.00015841,2]
[338656078,1726852246620,-500.0,0.00015841,2]
[338656079,1726852246630,-500.0,0.00015841,2]
[338656080,1726852246639,-500.0,0.00015841,2]
[338656081,1726852246649,-500.0,0.00015841,2]
[338656082,1726852246658,-500.0,0.00015841,2]
[338656083,1726852246668,-397.53226942,0.00015841,2]
[338656084,1726852246678,-500.0,0.00015841,2]
[338656085,1726852246687,-500.0,0.00015841,2]
[338656086,1726852246697,-500.0,0.00015841,2]
[338656087,1726852246707,-161.48793647,0.00015841,2]
[338656088,1726852246716,-500.0,0.00015841,2]
[338656089,1726852246726,-500.0,0.00015841,2]
[338656090,1726852246735,-500.0,0.00015841,2]
[338656091,1726852246745,-500.0,0.00015847,2]
[338656092,1726852246755,-500.0,0.00015849,2]
[338656093,1726852246766,-500.0,0.00015849,2]
[338656094,1726852246775,-500.0,0.00015849,2]
[338656095,1726852246786,-500.0,0.0001585,2]
[338656096,1726852246797,-500.0,0.0001585,2]
[338656097,1726852246809,-500.0,0.0001585,2]
[338656098,1726852246818,-500.0,0.0001585,2]
[338656099,1726852246828,-584.88,0.0001585,2]
[338656100,1726852246838,-373.82216024,0.0001585,2]
[338656101,1726852246849,-733.8,0.0001585,2]
[338656102,1726852246861,-191.21,0.0001585,2]
[338656103,1726852246870,-500.0,0.0001585,2]
[338656104,1726852246879,-500.0,0.0001585,2]
[338656105,1726852246889,-1210.13,0.0001585,2]
[338656106,1726852246900,-166.16,0.0001585,2]
[338656107,1726852246910,-531.66243584,0.0001585,2]
[338656108,1726852246920,-417.99082003,0.0001585,2]
[338656109,1726852246929,-500.0,0.0001585,2]
[338656110,1726852246939,-461.42776472,0.0001585,2]
[338656111,1726852246948,-500.0,0.0001585,2]
[338656112,1726852246957,-935.32,0.0001585,2]
[338656113,1726852246969,-245.15,0.0001585,2]
[338656114,1726852246978,-500.0,0.0001585,2]
[338656115,1726852246989,-500.0,0.0001585,2]
[338656116,1726852246998,-500.0,0.0001585,2]
[338656117,1726852247008,-500.0,0.0001585,2]
[338656118,1726852247017,-500.0,0.0001585,2]
[338656119,1726852247027,-500.0,0.00015851,2]
[338656120,1726852247036,-581.45035068,0.00015851,2]
[338656121,1726852247046,-500.0,0.00015851,2]
[338656122,1726852247057,-500.0,0.00015851,2]
[338656123,1726852247066,-500.0,0.00015851,2]
[338656124,1726852247076,-500.0,0.00015851,2]
[338656125,1726852247085,-500.0,0.00015851,2]
[338656126,1726852247096,-500.0,0.00015851,2]
[338656127,1726852247107,-511.17,0.00015851,2]
[338656128,1726852247117,-500.0,0.00015851,2]
[338656129,1726852247130,-500.0,0.00015851,2]
[338656130,1726852247139,-640.78,0.00015851,2]
[338656131,1726852247149,-500.0,0.00015851,2]
[338656132,1726852247160,-648.89,0.00015851,2]
[338656133,1726852247170,-500.0,0.00015851,2]
[338656134,1726852247180,-500.0,0.00015851,2]
[338656135,1726852247189,-500.0,0.00015851,2]
[338656136,1726852247199,-500.0,0.00015851,2]
[338656137,1726852247211,-500.0,0.00015851,2]
[338656138,1726852247223,-500.0,0.00015851,2]
[338656139,1726852247233,-500.0,0.00015851,2]
[338656140,1726852247244,-500.0,0.00015851,2]
[338656141,1726852247255,-500.0,0.00015851,2]
[338656142,1726852247265,-500.0,0.00015851,2]
[338656143,1726852247275,-1079.71,0.00015851,2]
[338656144,1726852247285,-500.0,0.00015851,2]
[338656145,1726852247297,-500.0,0.00015851,2]
[338656146,1726852247307,-2629.19,0.00015851,2]
[338656147,1726852247318,-668.62,0.00015851,2]
[338656148,1726852247330,-500.0,0.00015851,2]
[338656149,1726852247339,-687.92,0.00015851,2]
[338656150,1726852247349,-776.18,0.00015851,2]
[338656151,1726852247363,-1002.63,0.00015851,2]
[338656152,1726852247377,-500.0,0.00015851,2]
[338656153,1726852247386,-500.0,0.00015851,2]
[338656154,1726852247395,-500.0,0.00015851,2]
[338656155,1726852247404,-500.0,0.00015851,2]
[338656156,1726852247413,-500.0,0.00015851,2]
[338656157,1726852247423,-1080.23,0.00015851,2]
[338656158,1726852247431,-500.0,0.00015851,2]
[338656159,1726852247442,-500.0,0.00015851,2]
[338656160,1726852247451,-500.0,0.00015851,2]
[338656161,1726852247460,-866.91,0.00015851,2]
[338656162,1726852247470,-1052.13,0.00015851,2]
[338656163,1726852247480,-503.53746656,0.00015851,2]
[338656164,1726852247489,-692.17,0.00015851,2]
[338656165,1726852247499,-500.0,0.00015851,2]
[338656166,1726852247509,-258.37886384,0.00015851,2]
[338656167,1726852247518,-500.0,0.00015851,2]
[338656168,1726852247528,-500.0,0.00015851,2]
[338656169,1726852247538,-645.11,0.00015851,2]
[338656170,1726852247547,-500.0,0.00015851,2]
[338656171,1726852247557,-983.67,0.00015851,2]
[338656172,1726852247566,-583.88,0.00015851,2]
[338656173,1726852247576,-254.00408084,0.00015851,2]
[338656174,1726852247585,-500.0,0.00015851,2]
[338656175,1726852247595,-500.0,0.00015851,2]
[338656176,1726852247604,-500.0,0.00015851,2]
[338656177,1726852247615,-617.12,0.00015851,2]
[338656178,1726852247624,-500.0,0.00015851,2]
[338656179,1726852247634,-543.69,0.00015851,2]
[338656180,1726852247644,-277.802,0.00015851,2]
[338656181,1726852247653,-500.0,0.00015851,2]
[338656182,1726852247664,-500.0,0.00015851,2]
[338656183,1726852247673,-500.0,0.00015851,2]
[338656184,1726852247683,-500.0,0.00015851,2]
[338656185,1726852247692,-500.0,0.00015851,2]
[338656186,1726852247702,-500.0,0.00015851,2]
[338656187,1726852247711,-500.0,0.00015851,2]
[338656188,1726852247721,-500.0,0.00015851,2]
[338656189,1726852247730,-500.0,0.00015851,2]
[338656190,1726852247740,-500.0,0.00015851,2]
[338656191,1726852247750,-679.25,0.00015851,2]
[338656192,1726852247760,-178.36590775,0.00015851,2]
[338656193,1726852247769,-501.68743612,0.00015851,2]
[338656194,1726852247778,-500.0,0.00015851,2]
[338656195,1726852247788,-500.0,0.00015851,2]
[338656196,1726852247797,-1924.05,0.00015851,2]
[338656197,1726852247806,-1924.05,0.00015851,2]
[338656198,1726852247815,-1924.05,0.00015851,2]
[338656199,1726852247825,-500.0,0.00015851,2]
[338656200,1726852247834,-185.6,0.00015851,2]
[338656201,1726852247845,-500.0,0.00015851,2]
[338656202,1726852247856,-500.0,0.00015851,2]
[338656203,1726852247865,-500.0,0.00015851,2]
[338656204,1726852247874,-500.0,0.00015851,2]
[338656205,1726852247884,-500.0,0.00015851,2]
[338656206,1726852247894,-500.0,0.00015851,2]
[338656207,1726852247903,-500.0,0.00015851,2]
[338656208,1726852247912,-500.0,0.00015851,2]
[338656209,1726852247922,-502.11038455,0.00015851,2]
[338656210,1726852247931,-500.0,0.00015851,2]
[338656211,1726852247941,-500.0,0.00015851,2]
[338656212,1726852247950,-500.0,0.00015851,2]
[338656213,1726852247960,-500.0,0.00015851,2]
[338656214,1726852247969,-500.0,0.00015851,2]
[338656215,1726852247979,-638.6,0.00015851,2]
[338656216,1726852247989,-500.0,0.00015851,2]
[338656217,1726852248000,-500.0,0.00015851,2]
[338656218,1726852248011,-500.0,0.00015851,2]
[338656219,1726852248021,-500.0,0.00015851,2]
[338656220,1726852248031,-500.0,0.00015851,2]
[338656221,1726852248041,-500.0,0.00015851,2]
[338656222,1726852248051,-500.0,0.00015851,2]
[338656223,1726852248062,-500.0,0.00015851,2]
[338656224,1726852248071,-500.0,0.00015851,2]
[338656225,1726852248250,-500.0,0.00015851,2]
[338656226,1726852248261,-500.0,0.00015851,2]
[338656227,1726852248270,-500.0,0.00015851,2]
[338656228,1726852248280,-500.0,0.00015851,2]
[338656229,1726852248289,-500.0,0.00015851,2]
[338656230,1726852248299,-500.0,0.00015851,2]
[338656231,1726852248308,-500.0,0.00015851,2]
[338656232,1726852248319,-500.0,0.00015851,2]
[338656233,1726852248328,-500.0,0.00015851,2]
[338656234,1726852248338,-500.0,0.00015851,2]
[338656235,1726852248348,-500.0,0.00015851,2]
[338656236,1726852248359,-500.0,0.00015851,2]
[338656237,1726852248368,-500.0,0.00015851,2]
[338656238,1726852248378,-500.0,0.00015851,2]
[338656239,1726852248388,-500.0,0.00015852,2]
[338656240,1726852248397,-321.13787606,0.00015852,2]
[338656241,1726852248407,-500.0,0.00015852,2]
[338656242,1726852248417,-500.0,0.00015852,2]
[338656243,1726852248427,-500.0,0.00015852,2]
[338656244,1726852248437,-500.0,0.00015852,2]
[338656245,1726852248448,-500.0,0.00015852,2]
[338656246,1726852248457,-500.0,0.00015852,2]
[338656247,1726852248466,-500.0,0.00015852,2]
[338656248,1726852248477,-500.0,0.00015852,2]
[338656249,1726852248486,-500.0,0.00015852,2]
[338656250,1726852248496,-500.0,0.00015852,2]
[338656251,1726852248506,-500.0,0.00015852,2]
[338656252,1726852248517,-500.0,0.00015852,2]
[338656253,1726852248526,-500.0,0.00015852,2]
[338656254,1726852248535,-500.0,0.00015852,2]
[338656255,1726852248546,-500.0,0.00015852,2]
[338656256,1726852248555,-500.0,0.00015852,2]
[338656257,1726852248565,-500.0,0.00015852,2]
[338656258,1726852248575,-501.04923681,0.00015852,2]
[338656259,1726852248584,-500.0,0.00015852,2]
[338656260,1726852248594,-500.0,0.00015852,2]
[338656261,1726852248603,-500.0,0.00015852,2]
[338656262,1726852248619,-500.0,0.00015852,2]
[338656263,1726852248628,-500.0,0.00015852,2]
[338656264,1726852248637,-500.0,0.00015852,2]
[338656265,1726852248646,-247.45,0.00015852,2]
[338656266,1726852248656,-253.17296641,0.00015852,2]
[338656267,1726852248665,-500.0,0.00015852,2]
[338656268,1726852248674,-500.56276433,0.00015852,2]
[338656269,1726852248682,-500.26450851,0.00015852,2]
[338656270,1726852248691,-505.36893743,0.00015852,2]
[338656271,1726852248700,-500.5054268,0.00015852,2]
[338656272,1726852248710,-501.59636202,0.00015852,2]
[338656273,1726852248719,-4576.23621527,0.00015853,2]
[338656274,1726852248728,-9152.47243054,0.00015862,2]
[338656275,1726852248739,-233.3,0.00015862,2]
[338656276,1726852248749,-542.47029966,0.00015863,2]
[338656277,1726852248759,-500.0,0.00015863,2]
[338656278,1726852248768,-500.0,0.00015863,2]
[338656279,1726852248778,-500.0,0.00015863,2]
[338656280,1726852248787,-500.0,0.00015863,2]
[338656281,1726852248796,-500.0,0.00015863,2]
[338656282,1726852248806,-500.0,0.00015863,2]
[338656283,1726852248815,-500.0,0.00015863,2]
[338656284,1726852248825,-500.0,0.00015863,2]
[338656285,1726852248835,-500.0,0.00015863,2]
[338656286,1726852248845,-329.58,0.00015863,2]
[338656287,1726852248858,-1924.05,0.00015863,2]
[338656288,1726852248868,-1924.05,0.00015863,2]
[338656289,1726852248877,-1924.05,0.00015863,2]
[338656290,1726852248886,-1924.05,0.00015863,2]
[338656291,1726852248895,-1924.05,0.00015863,2]
[338656292,1726852248906,-1924.05,0.00015863,2]
[338656293,1726852248917,-1924.05,0.00015863,2]
[338656294,1726852248927,-1924.05,0.00015863,2]
[338656295,1726852248937,-1924.05,0.00015863,2]
[338656296,1726852248947,-500.0,0.00015863,2]
[338656297,1726852248957,-500.0,0.00015863,2]
[338656298,1726852248966,-500.0,0.00015863,2]
[338656299,1726852248976,-500.0,0.00015863,2]
[338656300,1726852248985,-500.0,0.00015863,2]
[338656301,1726852248995,-500.0,0.00015863,2]
[338656302,1726852249005,-500.0,0.00015863,2]
[338656303,1726852249015,-500.0,0.00015863,2]
[338656304,1726852249025,-500.0,0.00015863,2]
[338656305,1726852249035,-500.0,0.00015863,2]
[338656306,1726852249046,-500.0,0.00015863,2]
[338656307,1726852249056,-500.0,0.00015863,2]
[338656308,1726852249065,-500.0,0.00015863,2]
[338656309,1726852249074,-500.0,0.00015863,2]
[338656310,1726852249084,-644.8004649,0.00015863,2]
[338656311,1726852249094,-151.0,0.00015872,2]
[338656312,1726852249103,-151.0,0.00015872,2]
[338656313,1726852249116,-151.0,0.00015872,2]
[338656314,1726852249130,-151.0,0.00015872,2]
[338656315,1726852249140,-151.0,0.00015872,2]
[338656316,1726852249150,-151.0,0.00015872,2]
[338656317,1726852249160,-151.0,0.00015872,2]
[338656318,1726852249171,-151.0,0.00015872,2]
[338656319,1726852249181,-191.25028,0.00015872,2]
[338656320,1726852249190,-151.0,0.00015872,2]
[338656321,1726852249199,-151.0,0.00015872,2]
[338656322,1726852249211,-151.0,0.00015872,2]
[338656323,1726852249221,-151.0,0.00015872,2]
[338656324,1726852249232,-290.825208,0.00015872,2]
[338656325,1726852249242,-290.825208,0.00015872,2]
[338656326,1726852249253,-499.180667,0.00015872,2]
[338656327,1726852249262,-499.180667,0.00015872,2]
[338656328,1726852249272,-500.0,0.00015873,2]
[338656329,1726852249301,-500.0,0.00015873,2]
[338656330,1726852249311,-500.0,0.00015873,2]
[338656331,1726852249320,-1924.05,0.00015873,2]
[338656332,1726852249330,-1924.05,0.00015873,2]
[338656333,1726852249340,-1924.05,0.00015873,2]
[338656334,1726852249349,-162.90486281,0.00015873,2]
[338656335,1726852249361,-153.0,0.000159,2]
[338656336,1726852249370,-150.112233,0.000159,2]
[338656337,1726852249379,-150.112233,0.000159,2]
[338656338,1726852249389,-150.112233,0.000159,2]
[338656339,1726852249398,-150.112233,0.000159,2]
[338656340,1726852249408,-150.112233,0.000159,2]
[338656341,1726852249417,-11010.0,0.0001593,2]
[338656342,1726852249429,-4576.23621527,0.00015934,2]
[338656343,1726852249439,-500.0,0.00015944,2]
[338656344,1726852249448,-539.24,0.00015944,2]
[338656345,1726852249458,-1924.05,0.00015944,2]
[338656346,1726852249467,-1924.05,0.00015944,2]
[338656347,1726852249477,-1924.05,0.00015944,2]
[338656348,1726852249486,-1924.05,0.00015944,2]
[338656349,1726852249496,-1924.05,0.00015944,2]
[338656350,1726852249505,-1924.05,0.00015944,2]
[338656351,1726852249514,-1924.05,0.00015944,2]
[338656352,1726852249524,-1924.05,0.00015944,2]
[338656353,1726852249534,-1924.25171115,0.00015944,2]
[338656354,1726852249545,-151.0,0.00015965,2]
[338656355,1726852249555,-251.56001034,0.00015975,2]
[338656356,1726852249564,-208.7923626,0.00016,2]
[338656357,1726852249574,-153.0,0.00016,2]
[338656358,1726852249583,-306.0,0.00016,2]
[338656359,1726852249593,-153.0,0.00016,2]
[338656360,1726852249603,-153.0,0.00016,2]
[338656361,1726852249616,-1000.0,0.00016,8]
[338656362,1726852249626,-153.0,0.00016,2]
[338656363,1726852249636,-6688.6402436,0.00016015,2]
[338656364,1726852252017,165.13,0.00010959,2]
[338656365,1726852262551,825.7,0.00010959,2]
[338656606,1726852810769,500.0,0.00014,5]
[338656615,1726852839047,1000.0,0.00019911,120]
[338656616,1726852854487,500.0,0.00014,5]
[338656617,1726852862829,1000.0,0.00019911,120]
[338656618,1726852869772,500.0,0.00014,5]
[338656619,1726852877822,1001.0,0.00019911,120]
[338656620,1726852885444,500.0,0.00014,5]
[338656621,1726852893890,949.0,0.00019911,120]
[338656622,1726852925918,500.0,0.00014,5]
[338656781,1726853439981,-300.0,0.00015399,2]
[338656782,1726853439993,-300.0,0.00015399,2]
[338656783,1726853440005,-10296.51104924,0.000154,2]
[338656784,1726853440015,-500.0,0.000155,5]
[338656785,1726853440026,-2700.22816386,0.00015701,2]
[338656786,1726853440037,-195.70785095,0.00015702,2]
[338656787,1726853440047,-1000.0,0.00015731,2]
[338656788,1726853440056,-7139.2745635,0.00015757,2]
[338656789,1726853440066,-500.0,0.00015801,2]
[338656790,1726853440075,-500.0,0.00015801,2]
[338656791,1726853440085,-500.0,0.00015801,2]
[338656792,1726853440095,-500.0,0.00015801,2]
[338656793,1726853440105,-500.0,0.00015801,2]
[338656794,1726853440114,-500.0,0.00015801,2]
[338656795,1726853440123,-500.0,0.00015801,2]
[338656796,1726853440132,-500.0,0.00015801,2]
[338656797,1726853440142,-500.0,0.00015801,2]
[338656798,1726853440151,-500.0,0.00015801,2]
[338656799,1726853440161,-500.0,0.00015801,2]
[338656800,1726853440171,-500.0,0.00015801,2]
[338656801,1726853440180,-500.0,0.00015801,2]
[338656802,1726853440189,-500.0,0.00015801,2]
[338656803,1726853440199,-500.0,0.00015801,2]
[338656804,1726853440208,-500.0,0.00015801,2]
[338656805,1726853440217,-500.0,0.00015801,2]
[338656806,1726853440226,-500.0,0.00015801,2]
[338656807,1726853440236,-500.0,0.00015801,2]
[338656808,1726853440245,-500.0,0.00015801,2]
[338656809,1726853440254,-500.0,0.00015801,2]
[338656810,1726853440264,-500.0,0.00015801,2]
[338656811,1726853440273,-500.0,0.00015801,2]
[338656812,1726853440283,-500.0,0.00015801,2]
[338656813,1726853440292,-500.0,0.00015801,2]
[338656814,1726853440301,-500.0,0.00015801,2]
[338656815,1726853440311,-500.0,0.00015801,2]
[338656816,1726853440320,-500.0,0.00015801,2]
[338656817,1726853440329,-500.0,0.00015801,2]
[338656818,1726853440340,-500.0,0.00015801,2]
[338656819,1726853440349,-500.0,0.00015801,2]
[338656820,1726853440358,-500.0,0.00015801,2]
[338656821,1726853440368,-500.0,0.00015801,2]
[338656822,1726853440377,-500.0,0.00015801,2]
[338656823,1726853440386,-500.0,0.00015801,2]
[338656824,1726853440395,-500.0,0.00015801,2]
[338656825,1726853440405,-500.0,0.00015801,2]
[338656826,1726853440414,-500.0,0.00015801,2]
[338656827,1726853440423,-500.0,0.00015801,2]
[338656828,1726853440432,-500.0,0.00015801,2]
[338656829,1726853440442,-500.0,0.00015801,2]
[338656830,1726853440451,-500.0,0.00015801,2]
[338656831,1726853440461,-500.0,0.00015801,2]
[338656832,1726853440471,-500.0,0.00015801,2]
[338656833,1726853440481,-500.0,0.00015801,2]
[338656834,1726853440491,-500.0,0.00015801,2]
[338656835,1726853440500,-500.0,0.00015801,2]
[338656836,1726853440509,-500.0,0.00015801,2]
[338656837,1726853440519,-500.0,0.00015801,2]
[338656838,1726853440532,-500.0,0.00015801,2]
[338656839,1726853440542,-500.0,0.00015801,2]
[338656840,1726853440552,-500.0,0.00015801,2]
[338656841,1726853440561,-500.0,0.00015801,2]
[338656842,1726853440576,-500.0,0.00015801,2]
[338656843,1726853440586,-500.0,0.00015801,2]
[338656844,1726853440598,-357.53137258,0.00015801,2]
[338656845,1726853440608,-500.0,0.00015801,2]
[338656846,1726853440618,-500.0,0.00015801,2]
[338656847,1726853440629,-500.0,0.00015801,2]
[338656848,1726853440638,-500.0,0.00015801,2]
[338656849,1726853440648,-500.0,0.00015801,2]
[338656850,1726853440658,-500.0,0.00015801,2]
[338656851,1726853440668,-500.0,0.00015801,2]
[338656852,1726853440678,-333.89028745,0.00015801,2]
[338656853,1726853440687,-515.77247994,0.00015801,2]
[338656854,1726853440697,-500.0,0.00015801,2]
[338656855,1726853440707,-500.0,0.00015801,2]
[338656856,1726853440717,-500.0,0.00015801,2]
[338656857,1726853440727,-500.0,0.00015801,2]
[338656858,1726853440737,-500.0,0.00015801,2]
[338656859,1726853440747,-500.0,0.00015801,2]
[338656860,1726853440757,-500.0,0.00015801,2]
[338656861,1726853440766,-500.0,0.00015801,2]
[338656862,1726853440775,-501.16918982,0.00015801,2]
[338656863,1726853440785,-500.0,0.00015801,2]
[338656864,1726853440794,-500.0,0.00015801,2]
[338656865,1726853440804,-500.0,0.00015801,2]
[338656866,1726853440813,-4036.3359345,0.00015802,2]
[338656867,1726853441041,-361466.6688905,0.00015802,2]
[338656868,1726853441051,-16855.0713749,0.00015802,2]
[338656869,1726853441061,-150.0,0.00015803,2]
[338656870,1726853441070,-121834.334942,0.0001581,2]
[338656871,1726853441081,-11236.7142499,0.0001581,2]
[338656872,1726853441094,-586.75,0.00015811,2]
[338656873,1726853441105,-1927.89,0.00015811,2]
[338656874,1726853441114,-500.0,0.00015811,2]
[338656875,1726853441131,-500.0,0.00015811,2]
[338656876,1726853441144,-1247.63,0.00015811,2]
[338656877,1726853441154,-500.0,0.00015811,2]
[338656878,1726853441163,-500.0,0.00015811,2]
[338656879,1726853441172,-49217.92,0.00015811,2]
[338656880,1726853441182,-5618.35712496,0.00015811,2]
[338656881,1726853441193,-521.78,0.0001582,2]
[338656882,1726853441203,-500.0,0.0001582,2]
[338656883,1726853441214,-240.27,0.0001582,2]
[338656884,1726853441225,-500.0,0.0001582,2]
[338656885,1726853441236,-500.0,0.0001582,2]
[338656886,1726853441247,-889.63,0.0001582,2]
[338656887,1726853441258,-500.0,0.0001582,2]
[338656888,1726853441268,-7062.83,0.0001582,2]
[338656889,1726853441281,-500.0,0.0001582,2]
[338656890,1726853441292,-500.0,0.0001582,2]
[338656891,1726853441302,-500.0,0.0001582,2]
[338656892,1726853441313,-425.24456235,0.0001582,2]
[338656893,1726853441323,-709.4,0.0001582,2]
[338656894,1726853441334,-500.0,0.0001582,2]
[338656895,1726853441345,-610.49,0.0001582,2]
[338656896,1726853441355,-500.0,0.0001582,2]
[338656897,1726853441364,-500.0,0.0001582,2]
[338656898,1726853441373,-1080.22,0.0001582,2]
[338656899,1726853441382,-500.0,0.0001582,2]
[338656900,1726853441393,-500.0,0.0001582,2]
[338656901,1726853441404,-500.0,0.0001582,2]
[338656902,1726853441416,-500.0,0.0001582,2]
[338656903,1726853441427,-500.0,0.0001582,2]
[338656904,1726853441438,-500.0,0.0001582,2]
[338656905,1726853441449,-500.0,0.0001582,2]
[338656906,1726853441458,-247.63,0.0001582,2]
[338656907,1726853441468,-500.0,0.0001582,2]
[338656908,1726853441479,-500.0,0.0001582,2]
[338656909,1726853441490,-500.0,0.0001582,2]
[338656910,1726853441500,-500.0,0.0001582,2]
[338656911,1726853441510,-22473.4284998,0.0001582,2]
[338656912,1726853441523,-500.0,0.00015821,2]
[338656913,1726853441535,-538.29,0.00015821,2]
[338656914,1726853441548,-500.0,0.00015821,2]
[338656915,1726853441558,-870.62,0.00015821,2]
[338656916,1726853441569,-500.0,0.00015821,2]
[338656917,1726853441581,-517.71056196,0.00015821,2]
[338656918,1726853441593,-658.8,0.00015821,2]
[338656919,1726853441608,-500.0,0.00015821,2]
[338656920,1726853441619,-500.0,0.00015821,2]
[338656921,1726853441630,-536.72,0.00015821,2]
[338656922,1726853441641,-500.0,0.00015821,2]
[338656923,1726853441650,-500.0,0.00015821,2]
[338656924,1726853441659,-500.0,0.00015821,2]
[338656925,1726853441669,-859.83,0.00015821,2]
[338656926,1726853441678,-459.52509519,0.00015821,2]
[338656927,1726853441687,-500.0,0.00015821,2]
[338656928,1726853441696,-500.0,0.00015821,2]
[338656929,1726853441706,-527.34,0.00015821,2]
[338656930,1726853441715,-500.0,0.00015821,2]
[338656931,1726853441724,-500.0,0.00015821,2]
[338656932,1726853441733,-500.0,0.00015821,2]
[338656933,1726853441743,-500.0,0.00015821,2]
[338656934,1726853441752,-662.0,0.00015821,2]
[338656935,1726853441762,-500.0,0.00015821,2]
[338656936,1726853441771,-500.0,0.00015821,2]
[338656937,1726853441781,-500.0,0.00015821,2]
[338656938,1726853441790,-500.0,0.00015821,2]
[338656939,1726853441799,-500.0,0.00015821,2]
[338656940,1726853441808,-500.0,0.00015821,2]
[338656941,1726853441818,-500.0,0.00015821,2]
[338656942,1726853441828,-500.0,0.00015821,2]
[338656943,1726853441839,-500.0,0.00015821,2]
[338656944,1726853441854,-500.0,0.00015821,2]
[338656945,1726853441863,-500.0,0.00015821,2]
[338656946,1726853441872,-500.0,0.00015821,2]
[338656947,1726853441881,-500.0,0.00015821,2]
[338656948,1726853441891,-477.52307908,0.00015821,2]
[338656949,1726853441900,-716.0,0.00015821,2]
[338656950,1726853441909,-500.0,0.00015821,2]
[338656951,1726853441918,-500.0,0.00015821,2]
[338656952,1726853441928,-1815.09,0.00015821,2]
[338656953,1726853441938,-500.0,0.00015821,2]
[338656954,1726853441959,-500.0,0.00015821,2]
[338656955,1726853441968,-578.27,0.00015821,2]
[338656956,1726853441978,-500.0,0.00015821,2]
[338656957,1726853441988,-500.0,0.00015821,2]
[338656958,1726853441997,-428.16094256,0.00015821,2]
[338656959,1726853442006,-498.31916212,0.00015821,2]
[338656960,1726853442016,-500.0,0.00015821,2]
[338656961,1726853442026,-500.0,0.00015821,2]
[338656962,1726853442035,-678.05,0.00015821,2]
[338656963,1726853442045,-500.0,0.00015821,2]